Workbook

Sheet credit
A1: تقرير المرابحة والبيع الاجل | K1: =COLUMN() -> 11 | L1: =COLUMN() -> 12 | M1: =COLUMN() -> 13 | N1: =COLUMN() -> 14 | O1: =COLUMN() -> 15 | P1: الأقساط
P2: 1 | R2: 2 | T2: 3 | V2: 4 | X2: 5 | Z2: 6 | AB2: 7 | AD2: 8 | AF2: 9 | AH2: 10 | AJ2: 11 | AL2: 12
P3: القسط الأول | R3: القسط لثاني | T3: القسط الثالث | V3: القسط الرابع | X3: القسط الخامس | Z3: القسط السادس | AB3: القسط السابع | AD3: القسط الثامن | AF3: القسط التاسع | AH3: القسط العاشر | AJ3: القسط الحادي عشر | AL3: القسط الثاني عشر
A4: م | B4: رقم الاذن | C4: التاريخ | D4: اسم العميل | E4: اسم الضامن | F4: اسم الممول | G4: بيان /الصنف | H4: القيمة الاصلية | I4: دفعة | J4: القيمة للتقسيط | K4: عائد التمويل | L4: عدد الأقساط المتبقية | M4: قيمة القسط | N4: الرصيد المتبقي | O4: اجمالي المسدد | P4: التاريخ | Q4: القيمة | R4: التاريخ | S4: القيمة | T4: التاريخ | U4: القيمة | V4: التاريخ | W4: القيمة | X4: التاريخ | Y4: القيمة | Z4: التاريخ | AA4: القيمة | AB4: التاريخ | AC4: القيمة | AD4: التاريخ | AE4: القيمة | AF4: التاريخ | AG4: القيمة | AH4: التاريخ | AI4: القيمة | AJ4: التاريخ | AK4: القيمة | AL4: التاريخ | AM4: القيمة
A5: =IF((A4)<>"م",(A4)+1,1) -> 1 | B5: 1 | C5: 2022-06-09 | D5: 1000 | E5: جهاز كمبيوتر كامل | F5: 3300 | G5: 4000 | H5: =SUMIF([1]Accmove!B:B,[1]acc!B5,[1]Accmove!H:H)-SUMIF([1]Accmove!B:B,[1]acc!B5,[1]Accmove!I:I) -> -5500 | I5: عميل
A6: 2 | B6: 2 | C6: 2022-06-09 | D6: محمد ابو الجملين | E6: رمضان 2 | F6: لبليلبسيبي | G6: [ih. ;lfd,jv ;hlg | H6: 4000 | I6: 1000 | J6: 3300 | K6: =(J6-(H6-I6)) -> 300 | L6: 10 | M6: =J6/L6 -> 330 | N6: =J6-O6 -> 3300 | O6: =(Q6+S6+U6+W6+Y6+AA6+AC6+AE6+AG6+AI6+AK6+AM6) -> 0
A7: 3 | B7: 3 | C7: 2022-06-09 | D7: الاخير باذن الله | E7: لبلبل | F7: الاخير | G7: cghgsdsdsdd | H7: 5000 | I7: 1500 | J7: 4000 | K7: =(J7-(H7-I7)) -> 500 | L7: 10 | M7: =J7/L7 -> 400 | N7: =J7-(O7) -> 4000 | O7: =(Q7+S7+U7+W7+Y7+AA7+AC7+AE7+AG7+AI7+AK7+AM7) -> 0
A8: 4 | B8: 4 | C8: 2022-06-10 | D8: محمد ابو الجملين ابرهيم | E8: رمضان 1 | F8: محمد ابو الجملين ابراهيم 2 | G8: مكؤطكشسممكشسيكشسيميمسيشك | H8: 6000 | I8: 1200 | J8: 5500 | K8: =(J8-(H8-I8)) -> 700 | L8: 10 | M8: =J8/L8 -> 550 | N8: =J8-(O8) -> 5500 | O8: =(Q8+S8+U8+W8+Y8+AA8+AC8+AE8+AG8+AI8+AK8+AM8) -> 0
A9: 5 | B9: 5 | C9: 2022-06-10 | D9: محمد ابو الجملين ابرهيم | E9: رمضان 2 | F9: محمد ابو الجملين | G9: بيع اجهزة كمبيوتر | H9: 4000 | I9: 1000 | J9: 3300 | K9: =(J9-(H9-I9)) -> 300 | L9: 10 | M9: =J9/L9 -> 330 | N9: =J9-(O9) -> 3300 | O9: =(Q9+S9+U9+W9+Y9+AA9+AC9+AE9+AG9+AI9+AK9+AM9) -> 0
A10: 6 | B10: 6 | C10: 2022-06-10 | D10: الاخير باذن الله | E10: لبلبل | F10: الاخير | G10: l';ld';dl;d';'aa | H10: 3500 | I10: 1500 | J10: 2500 | K10: =(J10-(H10-I10)) -> 500 | L10: 10 | M10: =J10/L10 -> 250 | N10: =J10-(O10) -> 2500 | O10: =(Q10+S10+U10+W10+Y10+AA10+AC10+AE10+AG10+AI10+AK10+AM10) -> 0
